fUST/lending_fUST_20250724
["ID","MTS","AMOUNT","RATE_DAILY","PERIOD"]
[374575882,1753360283216,-498.33,0.00024109,2]
[374575883,1753360283225,-1757.41,0.00024109,2]
[374575884,1753360283235,-754.62,0.00024109,2]
[374575885,1753360283245,-529.83,0.00024109,2]
[374575886,1753360283254,-3594.1,0.00024109,2]
[374575887,1753360283264,-151.0,0.0002411,2]
[374575888,1753360283274,-500.0,0.0002411,2]
[374575889,1753360283283,-151.98645579,0.0002411,2]
[374575890,1753360283292,-166.59386987,0.0002411,2]
[374575891,1753360283302,-151.0,0.0002411,2]
[374575892,1753360283311,-151.0,0.0002411,2]
[374575893,1753360283320,-519.0,0.0002411,2]
[374575894,1753360283330,-151.0,0.0002411,2]
[374575895,1753360283340,-179.3227898,0.0002411,2]
[374575896,1753360283350,-848.0,0.00024113,2]
[374575897,1753360283359,-500.0,0.0002412,2]
[374575898,1753360283368,-1033.81,0.00024182,7]
[374575899,1753360283378,-151.0,0.00024205,7]
[374575900,1753360283387,-166.67,0.00024209,2]
[374575901,1753360283396,-2212.1093408,0.0002421,10]
[374575902,1753360283405,-168.0,0.0002422,2]
[374575903,1753360283415,-155.497014,0.00024221,9]
[374575904,1753360283426,-272.6,0.00024226,6]
[374575905,1753360283436,-500.0,0.00024233,2]
[374575906,1753360283446,-1033.81,0.00024282,2]
[374575907,1753360283455,-500.0,0.00024287,2]
[374575908,1753360283464,-500.0,0.0002429,2]
[374575909,1753360283474,-500.0,0.00024291,2]
[374575910,1753360283483,-500.0,0.00024294,2]
[374575911,1753360283493,-1101.33,0.000243,7]
[374575912,1753360283502,-34169.55,0.000243,2]
[374575913,1753360283512,-1000.0,0.000243,2]
[374575914,1753360283522,-2157.0,0.00024306,2]
[374575915,1753360283531,-969.0,0.00024306,2]
[374575916,1753360283541,-407.0,0.00024306,2]
[374575917,1753360283551,-421.197,0.00024306,2]
[374575918,1753360283560,-648.0,0.00024306,2]
[374575919,1753360283569,-206.0,0.0002431,2]
[374575920,1753360283579,-395.835009,0.00024348,7]
[374575921,1753360283588,-395.835009,0.00024348,7]
[374575922,1753360283598,-793.122708,0.00024348,7]
[374575923,1753360283607,-793.122708,0.00024348,7]
[374575924,1753360283617,-500.0,0.00024352,2]
[374575925,1753360283626,-168.0,0.00024355,2]
[374575926,1753360283635,-1033.81,0.00024382,5]
[374575927,1753360283644,-2212.1093408,0.00024383,11]
[374575928,1753360283654,-509.69,0.00024383,2]
[374575929,1753360283663,-460.0,0.00024383,2]
[374575930,1753360283675,-625.4,0.00024383,2]
[374575931,1753360283684,-461.86,0.00024383,2]
[374575932,1753360283695,-460.0,0.00024383,2]
[374575933,1753360283705,-617.93,0.00024383,2]
[374575934,1753360283714,-497.53,0.00024383,2]
[374575935,1753360283723,-498.33,0.00024383,2]
[374575936,1753360283732,-1176.12,0.00024383,2]
[374575937,1753360283742,-468.66,0.00024383,2]
[374575938,1753360283752,-512.48422645,0.00024383,2]
[374575939,1753360283761,-485.69,0.00024383,2]
[374575940,1753360283770,-521.62,0.00024383,2]
[374575941,1753360283779,-151.0,0.00024383,7]
[374575942,1753360283789,-460.0,0.00024383,2]
[374575943,1753360283799,-656.04,0.00024383,2]
[374575944,1753360283808,-460.0,0.00024383,2]
[374575945,1753360283818,-787.46,0.00024383,2]
[374575946,1753360283827,-4145.47,0.00024383,2]
[374575947,1753360283836,-460.0,0.00024383,2]
[374575948,1753360283846,-3246.15,0.00024383,2]
[374575949,1753360283856,-1199.81,0.00024383,2]
[374575950,1753360283865,-983.86,0.00024383,2]
[374575951,1753360283875,-468.85943743,0.00024383,2]
[374575952,1753360283884,-1418.88,0.00024383,2]
[374575953,1753360283894,-849.03,0.00024383,2]
[374575954,1753360283905,-460.0,0.00024383,2]
[374575955,1753360283915,-569.28,0.00024383,2]
[374575956,1753360283925,-1824.94,0.00024383,2]
[374575957,1753360283935,-627.83,0.00024383,2]
[374575958,1753360283944,-613.55,0.00024383,2]
[374575959,1753360283954,-2461.45,0.00024383,2]
[374575960,1753360283964,-479.16,0.00024383,2]
[374575961,1753360283975,-597.66,0.00024383,2]
[374575962,1753360283984,-2629.06,0.00024383,2]
[374575963,1753360283994,-602.97,0.00024383,2]
[374575964,1753360284003,-604.51,0.00024383,2]
[374575965,1753360284013,-1353.06,0.00024383,2]
[374575966,1753360284023,-460.0,0.00024383,2]
[374575967,1753360284032,-460.0,0.00024383,2]
[374575968,1753360284042,-2933.32,0.00024383,2]
[374575969,1753360284051,-616.01,0.00024383,2]
[374575970,1753360284060,-460.0,0.00024383,2]
[374575971,1753360284070,-460.21,0.00024383,2]
[374575972,1753360284080,-609.01,0.00024383,2]
[374575973,1753360284089,-1496.43,0.00024383,2]
[374575974,1753360284099,-1261.1,0.00024383,2]
[374575975,1753360284108,-1500.0,0.00024383,14]
[374575976,1753360284117,-653.26,0.00024383,2]
[374575977,1753360284127,-1500.0,0.00024383,14]
[374575978,1753360284139,-670.55,0.00024383,2]
[374575979,1753360284149,-1500.0,0.00024383,14]
[374575980,1753360284159,-1500.0,0.00024383,14]
[374575981,1753360284171,-1500.0,0.00024383,14]
[374575982,1753360284182,-1500.0,0.00024383,14]
[374575983,1753360284191,-1500.0,0.00024383,14]
[374575984,1753360284203,-1500.0,0.00024383,14]
[374575985,1753360284212,-1500.0,0.00024383,14]
[374575986,1753360284223,-1500.0,0.00024383,14]
[374575987,1753360284232,-1500.0,0.00024383,14]
[374575988,1753360284242,-1500.0,0.00024383,14]
[374575989,1753360284251,-1500.0,0.00024383,14]
[374575990,1753360284260,-1500.0,0.00024383,14]
[374575991,1753360284269,-1500.0,0.00024383,14]
[374575992,1753360284278,-5786.17,0.00024383,2]
[374575993,1753360284288,-1500.0,0.00024383,14]
[374575994,1753360284297,-1500.0,0.00024383,14]
[374575995,1753360284307,-596.9,0.00024383,2]
[374575996,1753360284316,-1500.0,0.00024383,14]
[374575997,1753360284326,-1500.0,0.00024383,14]
[374575998,1753360284335,-151.0,0.00024383,7]
[374575999,1753360284344,-1500.0,0.00024383,14]
[374576000,1753360284354,-1500.0,0.00024383,14]
[374576001,1753360284363,-1189.889258,0.00024383,14]
[374576002,1753360284372,-604.88,0.00024383,2]
[374576003,1753360284381,-1911.8,0.00024383,2]
[374576004,1753360284391,-460.0,0.00024383,2]
[374576005,1753360284400,-744.46,0.00024383,2]
[374576006,1753360284410,-460.0,0.00024383,2]
[374576007,1753360284422,-670.07,0.00024383,2]
[374576008,1753360284431,-531.78,0.00024383,2]
[374576009,1753360284440,-1002.82,0.00024383,2]
[374576010,1753360284450,-498.33,0.00024383,2]
[374576011,1753360284459,-1757.41,0.00024383,2]
[374576012,1753360284468,-754.62,0.00024383,2]
[374576013,1753360284477,-529.83,0.00024383,2]
[374576014,1753360284488,-3594.1,0.00024383,2]
[374576015,1753360284498,-201.96851347,0.00024384,2]
[374576016,1753360284508,-500.0,0.00024384,2]
[374576017,1753360284517,-151.0,0.00024384,2]
[374576018,1753360284526,-151.0,0.00024384,2]
[374576019,1753360284536,-519.0,0.00024384,2]
[374576020,1753360284545,-151.0,0.00024384,2]
[374576021,1753360284555,-643.0,0.000244,2]
[374576022,1753360284564,-292.055637,0.00024401,8]
[374576023,1753360284574,-155.497014,0.0002442,9]
[374576024,1753360284583,-800.0,0.00024446,2]
[374576025,1753360284593,-816.39450043,0.0002445,2]
[374576026,1753360284602,-1033.98,0.00024482,6]
[374576027,1753360284611,-500.0,0.0002449,2]
[374576028,1753360284620,-858.3282255,0.00024493,2]
[374576029,1753360284630,-429.7456075,0.00024493,2]
[374576030,1753360284639,-429.7456075,0.00024493,2]
[374576031,1753360284649,-429.7456075,0.00024493,2]
[374576032,1753360284658,-429.7456075,0.00024493,2]
[374576033,1753360284668,-429.7456075,0.00024493,2]
[374576034,1753360284679,-429.7456075,0.00024493,2]
[374576035,1753360284689,-292.8280074,0.00024493,2]
[374576036,1753360284699,-857.0257297,0.00024493,2]
[374576037,1753360284709,-859.491215,0.00024493,2]
[374576038,1753360284718,-429.7456075,0.00024493,2]
[374576039,1753360284728,-429.7456075,0.00024493,2]
[374576040,1753360284737,-429.5320659,0.00024493,2]
[374576041,1753360284747,-308.2057358,0.00024495,2]
[374576042,1753360284756,-153.0,0.00024495,2]
[374576043,1753360284765,-151.0,0.000245,7]
[374576044,1753360284774,-151.0,0.000245,7]
[374576045,1753360284783,-151.0,0.000245,7]
[374576046,1753360284793,-89498.18678505,0.000245,4]
[374576047,1753360284802,-2004.01418139,0.000245,3]
[374576048,1753360284920,-200.0,0.000245,2]
[374576049,1753360284947,-155.497014,0.00024518,7]
[374576050,1753360284956,-429.7456075,0.00024521,2]
[374576051,1753360284967,-859.491215,0.00024521,2]
[374576052,1753360284976,-429.7456075,0.00024521,2]
[374576053,1753360284987,-6282.55,0.00024528,10]
[374576054,1753360284996,-2212.1093408,0.00024555,11]
[374576055,1753360285005,-231.28369723,0.00024559,2]
[374576056,1753360285015,-272.6,0.00024563,7]
[374576057,1753360285025,-317.01409442,0.00024573,2]
[374576058,1753360285035,-823.0,0.00024578,2]
[374576059,1753360285044,-206.0,0.000246,2]
[374576060,1753360285054,-205.0,0.000246,2]
[374576061,1753360285064,-1000.0,0.000246,2]
[374576062,1753360285073,-1000.0,0.000246,2]
[374576063,1753360285083,-1000.0,0.000246,2]
[374576064,1753360285093,-1000.0,0.000246,2]
[374576065,1753360285102,-1000.0,0.000246,2]
[374576066,1753360285111,-1000.0,0.000246,2]
[374576067,1753360285121,-1000.0,0.000246,2]
[374576068,1753360285131,-1000.0,0.000246,2]
[374576069,1753360285144,-1000.0,0.000246,2]
[374576070,1753360285153,-1000.0,0.000246,2]
[374576071,1753360285162,-1000.0,0.000246,2]
[374576072,1753360285172,-1000.0,0.000246,2]
[374576073,1753360285183,-1000.0,0.000246,2]
[374576074,1753360285192,-1000.0,0.000246,2]
[374576075,1753360285202,-1000.0,0.000246,2]
[374576076,1753360285213,-1000.0,0.000246,2]
[374576077,1753360285223,-1000.0,0.000246,2]
[374576078,1753360285232,-1000.0,0.000246,2]
[374576079,1753360285242,-1000.0,0.000246,2]
[374576080,1753360285251,-1000.0,0.000246,2]
[374576081,1753360285261,-1000.0,0.000246,2]
[374576082,1753360285270,-1000.0,0.000246,2]
[374576083,1753360285279,-1000.0,0.000246,2]
[374576084,1753360285289,-1000.0,0.000246,2]
[374576085,1753360285299,-1000.0,0.000246,2]
[374576086,1753360285308,-1000.0,0.000246,2]
[374576087,1753360285318,-1000.0,0.000246,2]
[374576088,1753360285327,-1000.0,0.000246,2]
[374576089,1753360285336,-1000.0,0.000246,2]
[374576090,1753360285345,-1000.0,0.000246,2]
[374576091,1753360285356,-1000.0,0.000246,2]
[374576092,1753360285365,-1000.0,0.000246,2]
[374576093,1753360285376,-1000.0,0.000246,2]
[374576094,1753360285385,-1000.0,0.000246,2]
[374576095,1753360285395,-1000.0,0.000246,2]
[374576096,1753360285403,-1000.0,0.000246,2]
[374576097,1753360285411,-1000.0,0.000246,2]
[374576098,1753360285422,-1000.0,0.000246,2]
[374576099,1753360285432,-1000.0,0.000246,2]
[374576100,1753360285441,-1000.0,0.000246,2]
[374576101,1753360285451,-1000.0,0.000246,2]
[374576102,1753360285462,-1000.0,0.000246,2]
[374576103,1753360285472,-1000.0,0.000246,2]
[374576104,1753360285482,-1000.0,0.000246,2]
[374576105,1753360285492,-1000.0,0.000246,2]
[374576106,1753360285501,-1000.0,0.000246,2]
[374576107,1753360285510,-1000.0,0.000246,2]
[374576108,1753360285520,-1000.0,0.000246,2]
[374576109,1753360285528,-1000.0,0.000246,2]
[374576110,1753360285537,-1000.0,0.000246,2]
[374576111,1753360285547,-1000.0,0.000246,2]
[374576112,1753360285556,-1000.0,0.000246,2]
[374576113,1753360285565,-1000.0,0.000246,2]
[374576114,1753360285574,-1000.0,0.000246,2]
[374576115,1753360285584,-1000.0,0.000246,2]
[374576116,1753360285593,-1000.0,0.000246,2]
[374576117,1753360285603,-1000.0,0.000246,2]
[374576118,1753360285612,-1000.0,0.000246,2]
[374576119,1753360285621,-1000.0,0.000246,2]
[374576120,1753360285631,-1000.0,0.000246,2]
[374576121,1753360285640,-1000.0,0.000246,2]
[374576122,1753360285648,-1000.0,0.000246,2]
[374576123,1753360285656,-1000.0,0.000246,2]
[374576124,1753360285666,-1000.0,0.000246,2]
[374576125,1753360285676,-1000.0,0.000246,2]
[374576126,1753360285686,-1000.0,0.000246,2]
[374576127,1753360285695,-1000.0,0.000246,2]
[374576128,1753360285704,-939.73,0.000246,2]
[374576129,1753360285713,-2200.0,0.0002461,2]
[374576130,1753360285721,-63359.56618861,0.0002465,2]
[374576131,1753360285731,-166.67,0.00024651,2]
[374576132,1753360285741,-509.69,0.00024657,2]
[374576133,1753360285750,-625.4,0.00024657,2]
[374576134,1753360285760,-461.86,0.00024657,2]
[374576135,1753360285769,-460.0,0.00024657,2]
[374576136,1753360285779,-617.93,0.00024657,2]
[374576137,1753360285788,-497.53,0.00024657,2]
[374576138,1753360285798,-498.33,0.00024657,2]
[374576139,1753360285808,-1176.12,0.00024657,2]
[374576140,1753360285818,-468.66,0.00024657,2]
[374576141,1753360285828,-485.69,0.00024657,2]
[374576142,1753360285837,-460.0,0.00024657,2]
[374576143,1753360285847,-656.04,0.00024657,2]
[374576144,1753360285856,-460.0,0.00024657,2]
[374576145,1753360285867,-151.0,0.00024657,7]
[374576146,1753360285876,-4145.47,0.00024657,2]
[374576147,1753360285885,-787.46,0.00024657,2]
[374576148,1753360285895,-531.73,0.00024657,2]
[374576149,1753360285904,-3246.15,0.00024657,2]
[374576150,1753360285914,-1199.81,0.00024657,2]
[374576151,1753360285925,-983.86,0.00024657,2]
[374576152,1753360285935,-1418.88,0.00024657,2]
[374576153,1753360285946,-849.03,0.00024657,2]
[374576154,1753360285956,-460.0,0.00024657,2]
[374576155,1753360285966,-569.28,0.00024657,2]
[374576156,1753360285976,-1824.94,0.00024657,2]
[374576157,1753360285985,-627.83,0.00024657,2]
[374576158,1753360285995,-300.0,0.00024657,2]
[374576159,1753360286005,-300.0,0.00024657,2]
[374576160,1753360286015,-300.0,0.00024657,2]
[374576161,1753360286024,-300.0,0.00024657,2]
[374576162,1753360286033,-427.9252346,0.00024657,2]
[374576163,1753360286043,-613.55,0.00024657,2]
[374576164,1753360286053,-1165.05673883,0.00024657,2]
[374576165,1753360286395,-186.49875611,0.00018878,2]
[374576166,1753360286404,-186.49875607,0.00018903,2]
[374576167,1753360286414,-186.49875607,0.00018928,2]
[374576168,1753360286425,-186.49875607,0.00018953,2]
[374576169,1753360286434,-186.49875607,0.00018978,2]
[374576170,1753360286443,-205.82925969,0.00019178,2]
[374576171,1753360286457,-460.0,0.00019178,2]
[374576172,1753360286467,-460.0,0.00019178,2]
[374576173,1753360286476,-460.0,0.00019178,2]
[374576174,1753360286486,-460.0,0.00019178,2]
[374576175,1753360286495,-460.0,0.00019452,2]
[374576176,1753360286504,-460.0,0.00019726,2]
[374576177,1753360286514,-460.0,0.00019726,2]
[374576178,1753360286523,-460.0,0.0002,2]
[374576179,1753360286533,-460.0,0.0002,2]
[374576180,1753360286542,-460.0,0.00020273,2]
[374576181,1753360286551,-464.92321704,0.00020273,2]
[374576182,1753360286561,-460.0,0.00020547,2]
[374576183,1753360286570,-460.0,0.00020821,2]
[374576184,1753360286580,-460.0,0.00021095,2]
[374576185,1753360286590,-460.0,0.00021369,2]
[374576186,1753360286599,-460.0,0.00021643,2]
[374576187,1753360286609,-675.78,0.00021643,2]
[374576188,1753360286619,-270.06177904,0.00021917,2]
[374576189,1753360286629,-675.78,0.00021917,2]
[374576190,1753360286639,-675.78,0.00022191,2]
[374576191,1753360286648,-675.78,0.00022465,2]
[374576192,1753360286658,-312.57196384,0.00022739,2]
[374576193,1753360286701,-363.20803616,0.00022739,2]
[374576194,1753360286711,-675.78,0.00023013,2]
[374576195,1753360286720,-1296.39326117,0.00024657,2]
[374576196,1753360286730,-479.16,0.00024657,2]
[374576197,1753360286740,-597.66,0.00024657,2]
[374576198,1753360286749,-2629.06,0.00024657,2]
[374576199,1753360286759,-602.97,0.00024657,2]
[374576200,1753360286769,-604.51,0.00024657,2]
[374576201,1753360286778,-1353.06,0.00024657,2]
[374576202,1753360286788,-460.0,0.00024657,2]
[374576203,1753360286797,-460.0,0.00024657,2]
[374576204,1753360286806,-2500.0245638,0.00024657,2]
[374576205,1753360286827,-460.0,0.00019452,2]
[374576206,1753360286837,-675.78,0.00023287,2]
[374576207,1753360286847,-433.2954362,0.00024657,2]
[374576208,1753360286856,-616.01,0.00024657,2]
[374576209,1753360286865,-460.0,0.00024657,2]
[374576210,1753360286875,-460.21,0.00024657,2]
[374576211,1753360286884,-609.01,0.00024657,2]
[374576212,1753360286894,-1496.43,0.00024657,2]
[374576213,1753360286903,-1261.1,0.00024657,2]
[374576214,1753360286913,-653.26,0.00024657,2]
[374576215,1753360286923,-670.55,0.00024657,2]
[374576216,1753360286932,-5786.17,0.00024657,2]
[374576217,1753360286942,-596.9,0.00024657,2]
[374576218,1753360286951,-604.88,0.00024657,2]
[374576219,1753360286961,-1911.8,0.00024657,2]
[374576220,1753360286971,-460.0,0.00024657,2]
[374576221,1753360286981,-744.46,0.00024657,2]
[374576222,1753360286991,-670.07,0.00024657,2]
[374576223,1753360287000,-531.78,0.00024657,2]
[374576224,1753360287010,-1002.82,0.00024657,2]
[374576225,1753360287019,-498.33,0.00024657,2]
[374576226,1753360287029,-1757.41,0.00024657,2]
[374576227,1753360287039,-754.62,0.00024657,2]
[374576228,1753360287048,-529.83,0.00024657,2]
[374576229,1753360287057,-3594.1,0.00024657,2]
[374576230,1753360287067,-348.0,0.00024658,2]
[374576231,1753360287077,-245.0,0.00024658,2]
[374576232,1753360287086,-519.0,0.00024658,2]
[374576233,1753360287095,-245.0,0.00024658,2]
[374576234,1753360287105,-221.1447869,0.00024658,2]
[374576235,1753360287115,-472.0,0.00024658,2]
[374576236,1753360287124,-151.0,0.00024659,7]
[374576237,1753360287137,-155.497014,0.00024663,5]
[374576238,1753360287147,-154.6022915,0.00024685,2]
[374576239,1753360287157,-577.6552115,0.00024685,2]
[374576240,1753360287166,-159.9507963,0.00024685,2]
[374576241,1753360287178,-306.1586121,0.00024685,2]
[374576242,1753360287187,-306.0,0.00024685,2]
[374576243,1753360287196,-577.4526085,0.00024712,2]
[374576244,1753360287206,-2212.1093408,0.00024728,11]
[374576245,1753360287217,-809.0,0.00024737,2]
[374576246,1753360287228,-811.43970814,0.0002474,2]
[374576247,1753360287237,-500.0,0.00024756,2]
[374576248,1753360287246,-1507.209152,0.0002478,5]
[374576249,1753360287256,-155.497014,0.00024781,30]
[374576250,1753360287265,-2000.0,0.000248,2]
[374576251,1753360287275,-1022.31,0.000248,7]
[374576252,1753360287284,-7555.78,0.000248,7]
[374576253,1753360287294,-1000.0,0.000248,5]
[374576254,1753360287303,-2000.0,0.000248,2]
[374576255,1753360287313,-189.744645,0.000248,2]
[374576256,1753360287322,-151.0,0.000248,7]
[374576257,1753360287332,-500.0,0.0002482,2]
[374576258,1753360287341,-402.0,0.0002482,12]
[374576259,1753360287351,-159.9507963,0.00024828,2]
[374576260,1753360287360,-178.2667198,0.00024828,2]
[374576261,1753360287370,-319.1862312,0.00024828,2]
[374576262,1753360287379,-219.8431912,0.00024828,2]
[374576263,1753360287389,-178.2667198,0.00024828,2]
[374576264,1753360287398,-178.2667198,0.00024828,2]
[374576265,1753360287407,-176.2264446,0.00024828,2]
[374576266,1753360287417,-8704.45033229,0.0002483,2]
[374576267,1753360287429,-155.497014,0.00024859,7]
[374576268,1753360287439,-155.497014,0.00024875,30]
[374576269,1753360287449,-155.497014,0.00024887,5]
[374576270,1753360287458,-160.0,0.00024887,3]
[374576271,1753360287468,-160.0,0.00024887,5]
[374576272,1753360287477,-151.0,0.00024888,7]
[374576273,1753360287488,-185648.85233006,0.00024888,2]
[374576274,1753360287498,-155.497014,0.00024895,3]
[374576275,1753360287508,-168.0,0.00024897,2]
[374576276,1753360287518,-6919.09713743,0.000249,2]
[374576277,1753360287527,-314.805231,0.000249,7]
[374576278,1753360287538,-314.805231,0.000249,7]
[374576279,1753360287547,-151.0,0.000249,7]
[374576280,1753360287557,-151.0,0.000249,7]
[374576281,1753360287566,-151.0,0.000249,7]
[374576282,1753360287576,-179.463855,0.000249,7]
[374576283,1753360287585,-179.463862,0.000249,7]
[374576284,1753360287595,-206.0,0.000249,2]
[374576285,1753360287605,-205.0,0.000249,2]
[374576286,1753360287614,-151.0,0.000249,7]
[374576287,1753360287624,-807.62560805,0.000249,2]
[374576288,1753360287633,-151.342857,0.000249,7]
[374576289,1753360287643,-151.342857,0.000249,7]
[374576290,1753360287652,-155.497014,0.000249,2]
[374576291,1753360287662,-229.622132,0.000249,7]
[374576292,1753360287672,-229.622132,0.000249,7]
[374576293,1753360287681,-151.0,0.000249,7]
[374576294,1753360287691,-500.0,0.000249,5]
[374576295,1753360287701,-289.549182,0.000249,7]
[374576296,1753360287711,-289.549182,0.000249,7]
[374576297,1753360287720,-500.0,0.000249,5]
[374576298,1753360287730,-500.0,0.000249,5]
[374576299,1753360287739,-151.0,0.000249,7]
[374576300,1753360287748,-151.0,0.000249,7]
[374576301,1753360287758,-151.0,0.000249,7]
[374576302,1753360287768,-272.6,0.000249,7]
[374576303,1753360287777,-446.3195,0.000249,2]
[374576304,1753360287788,-446.3195,0.000249,2]
[374576305,1753360287799,-151.0,0.000249,7]
[374576306,1753360287809,-151.0,0.000249,7]
[374576307,1753360287819,-395.835009,0.000249,7]
[374576308,1753360287828,-395.835009,0.000249,7]
[374576309,1753360287839,-500.0,0.000249,5]
[374576310,1753360287849,-500.0,0.000249,5]
[374576311,1753360287858,-273878.86414796,0.000249,2]
[374576312,1753360287880,-421.90524874,0.00019726,2]
[374576313,1753360288296,-463.16476513,0.00019178,2]
[374576314,1753360288307,-460.0,0.00019178,2]
[374576315,1753360288317,-460.0,0.00019178,2]
[374576316,1753360288327,-462.44,0.00019178,2]
[374576317,1753360288338,-460.0,0.00019178,2]
[374576318,1753360288347,-460.9288975,0.00019178,2]
[374576319,1753360288357,-33.9912222,0.00019178,2]
[374576320,1753360288581,-264.91596639,0.00019178,2]
[374576321,1753360290561,-161.09281141,0.00019178,2]
[374576322,1753360290571,-463.08840882,0.00019178,2]
[374576323,1753360290582,-460.0,0.00019452,2]
[374576324,1753360290592,-460.0,0.00019452,2]
[374576325,1753360290602,-460.0,0.00019452,2]
[374576326,1753360290612,-370.47513516,0.00019452,2]
[374576327,1753360290622,-41.33808619,0.00019726,2]
[374576328,1753360290632,-460.0,0.00019726,2]
[374576329,1753360290642,-460.0,0.00019726,2]
[374576330,1753360290651,-460.0,0.00019726,2]
[374576331,1753360290661,-460.0,0.0002,2]
[374576332,1753360290671,-460.0,0.0002,2]
[374576333,1753360290682,-460.0,0.00020273,2]
[374576334,1753360290691,-460.0,0.00020273,2]
[374576335,1753360290700,-460.0,0.00020547,2]
[374576336,1753360290710,-460.0,0.00020547,2]
[374576337,1753360290720,-460.0,0.00020821,2]
[374576338,1753360290730,-464.9395928,0.00021095,2]
[374576339,1753360290740,-675.78,0.00023561,2]
[374576340,1753360290750,-675.78,0.00023835,2]
[374576341,1753360290760,-675.78,0.00024109,2]
[374576342,1753360290769,-675.78,0.00024383,2]
[374576343,1753360290779,-429.7456075,0.00024521,2]
[374576344,1753360290789,-675.78,0.00024657,2]
[374576345,1753360290798,-529.76084212,0.000249,2]
[374576346,1753360305439,159.372972,0.00013699,2]
[374576349,1753360695166,1615.6911525,0.00018111,2]
[374576350,1753360792390,1000.0,0.00018,2]
[374576352,1753360969120,1000.0,0.00018,2]
[374576353,1753360975615,-174.483466,0.00018461,2]
[374576354,1753360975637,-1000.0,0.00019,2]
[374576355,1753360975660,-306.23355182,0.00019078,2]
[374576358,1753361042699,169.80669432,0.00019076,2]
[374576359,1753361043120,169.80669431,0.00019076,2]
[374576360,1753361043461,169.80669431,0.00019077,2]
[374576361,1753361043857,169.80669431,0.00019078,2]
[374576362,1753361044433,169.80669431,0.00019078,2]
[374576363,1753361147978,1000.0,0.00018,2]
[374576365,1753361156091,-303.86807738,0.00019078,2]
[374576366,1753361156117,-191.0,0.00019175,2]
[374576367,1753361156143,-300.0,0.00019176,2]
[374576368,1753361156167,-300.0,0.00019176,2]
[374576369,1753361156192,-300.0,0.00019176,2]
[374576370,1753361156217,-293.60592083,0.00019176,2]
[374576373,1753361170943,384.7212891,0.00018,2]
[374576374,1753361170967,615.2787109,0.00018,2]
[374576376,1753361198327,1000.0,0.00018,2]
[374576378,1753361229364,1000.0,0.00018,2]
[374576379,1753361238635,1000.0,0.00018,2]
[374576380,1753361244081,-1200.0,0.00019176,2]
[374576381,1753361244103,-300.0,0.00019176,2]
[374576382,1753361244127,-300.0,0.00019176,2]
[374576383,1753361244148,-1229.64878359,0.00019177,2]
[374576384,1753361249091,-754.65638788,0.00019078,2]
[374576385,1753361253131,-766.20865705,0.00019078,2]
[374576386,1753361253154,-75.41638386,0.00019177,2]
[374576387,1753361258529,-2720.53296348,0.00019177,2]
[374576388,1753361258556,-158.98255584,0.00019177,2]
[374576389,1753361258989,1000.0,0.00017,2]
[374576390,1753361377559,159.372972,0.00013699,2]
[374576470,1753361438188,-1000.0,0.000185,2]